{"text_format":"3","workbook":"xlsx","n_sheets":4,"sheets":["Sažetak","Aktiva","Pasiva","Kategorije"],"not_rendered":{"defined_names":10},"read":"whole","date_system":"1900"}

{"sheet":"Sažetak","index":0,"n_rows":12,"n_cols":4,"rows_kept":12}
[null,"Bilanca stanja"]
[null,null,{"$f":"\"PG-\"&YEAR(TODAY())-1","v":"PG-2016"},{"$f":"\"PG-\"&YEAR(TODAY())","v":"PG-2017"}]
[null,"Vrsta aktive","Prethodna godina","Trenutna godina"]
[null,"Trenutna aktiva",{"$f":"SUMIFS(Aktiva[Prethodna godina],Aktiva[Vrsta aktive],Nadzorna_ploča[[#This Row],[Vrsta aktive]])+SUMIFS(Pasiva[Prethodna godina],Pasiva[Vrsta odgovornosti],Nadzorna_ploča[[#This Row],[Vrsta aktive]])","v":600},{"$f":"SUMIFS(Aktiva[Trenutna godina],Aktiva[Vrsta aktive],Nadzorna_ploča[[#This Row],[Vrsta aktive]])+SUMIFS(Pasiva[Trenutna godina],Pasiva[Vrsta odgovornosti],Nadzorna_ploča[[#This Row],[Vrsta aktive]])","v":600}]
[null,"Fiksna aktiva",{"$f":"SUMIFS(Aktiva[Prethodna godina],Aktiva[Vrsta aktive],Nadzorna_ploča[[#This Row],[Vrsta aktive]])+SUMIFS(Pasiva[Prethodna godina],Pasiva[Vrsta odgovornosti],Nadzorna_ploča[[#This Row],[Vrsta aktive]])","v":{"v":-100,"d":"-100 "}},{"$f":"SUMIFS(Aktiva[Trenutna godina],Aktiva[Vrsta aktive],Nadzorna_ploča[[#This Row],[Vrsta aktive]])+SUMIFS(Pasiva[Trenutna godina],Pasiva[Vrsta odgovornosti],Nadzorna_ploča[[#This Row],[Vrsta aktive]])","v":{"v":-85,"d":"-85 "}}]
[null,"Ostala aktiva",{"$f":"SUMIFS(Aktiva[Prethodna godina],Aktiva[Vrsta aktive],Nadzorna_ploča[[#This Row],[Vrsta aktive]])+SUMIFS(Pasiva[Prethodna godina],Pasiva[Vrsta odgovornosti],Nadzorna_ploča[[#This Row],[Vrsta aktive]])","v":0},{"$f":"SUMIFS(Aktiva[Trenutna godina],Aktiva[Vrsta aktive],Nadzorna_ploča[[#This Row],[Vrsta aktive]])+SUMIFS(Pasiva[Trenutna godina],Pasiva[Vrsta odgovornosti],Nadzorna_ploča[[#This Row],[Vrsta aktive]])","v":0}]
[null,"Trenutna pasiva",{"$f":"SUMIFS(Aktiva[Prethodna godina],Aktiva[Vrsta aktive],Nadzorna_ploča[[#This Row],[Vrsta aktive]])+SUMIFS(Pasiva[Prethodna godina],Pasiva[Vrsta odgovornosti],Nadzorna_ploča[[#This Row],[Vrsta aktive]])","v":500},{"$f":"SUMIFS(Aktiva[Trenutna godina],Aktiva[Vrsta aktive],Nadzorna_ploča[[#This Row],[Vrsta aktive]])+SUMIFS(Pasiva[Trenutna godina],Pasiva[Vrsta odgovornosti],Nadzorna_ploča[[#This Row],[Vrsta aktive]])","v":350}]
[null,"Dugoročna pasiva",{"$f":"SUMIFS(Aktiva[Prethodna godina],Aktiva[Vrsta aktive],Nadzorna_ploča[[#This Row],[Vrsta aktive]])+SUMIFS(Pasiva[Prethodna godina],Pasiva[Vrsta odgovornosti],Nadzorna_ploča[[#This Row],[Vrsta aktive]])","v":0},{"$f":"SUMIFS(Aktiva[Trenutna godina],Aktiva[Vrsta aktive],Nadzorna_ploča[[#This Row],[Vrsta aktive]])+SUMIFS(Pasiva[Trenutna godina],Pasiva[Vrsta odgovornosti],Nadzorna_ploča[[#This Row],[Vrsta aktive]])","v":0}]
[null,"Vlasnički kapital",{"$f":"SUMIFS(Aktiva[Prethodna godina],Aktiva[Vrsta aktive],Nadzorna_ploča[[#This Row],[Vrsta aktive]])+SUMIFS(Pasiva[Prethodna godina],Pasiva[Vrsta odgovornosti],Nadzorna_ploča[[#This Row],[Vrsta aktive]])","v":0},{"$f":"SUMIFS(Aktiva[Trenutna godina],Aktiva[Vrsta aktive],Nadzorna_ploča[[#This Row],[Vrsta aktive]])+SUMIFS(Pasiva[Trenutna godina],Pasiva[Vrsta odgovornosti],Nadzorna_ploča[[#This Row],[Vrsta aktive]])","v":350}]
[null,"Ukupna aktiva",{"$f":"Aktiva[[#Totals],[Prethodna godina]]","v":500},{"$f":"Aktiva[[#Totals],[Trenutna godina]]","v":515}]
[null,"Ukupna pasiva i dioničarski kapital",{"$f":"Pasiva[[#Totals],[Prethodna godina]]","v":500},{"$f":"Pasiva[[#Totals],[Trenutna godina]]","v":700}]
[null,"Saldo",{"$f":"C10-C11","v":0},{"$f":"D10-D11","v":{"v":-185,"d":"-185 "}}]

{"sheet":"Aktiva","index":1,"n_rows":14,"n_cols":5,"rows_kept":14}
[null,"Aktiva"]
[{"$nulls":3},{"$f":"POSLOVNA_GODINA","v":"PG-2016"},{"$f":"POSLOVNA_GODINA_2","v":"PG-2017"}]
[null,"Vrsta aktive","Opis","Prethodna godina","Trenutna godina"]
[null,"Trenutna aktiva","Novac",600,600]
[null,"Trenutna aktiva","Ulaganja"]
[null,"Trenutna aktiva","Zalihe"]
[null,"Trenutna aktiva","Potraživanja"]
[null,"Trenutna aktiva","Unaprijed plaćeni troškovi"]
[null,"Fiksna aktiva","Imovina i oprema"]
[null,"Fiksna aktiva","Poboljšanja imovine u najmu"]
[null,"Fiksna aktiva","Vlasnička i druga ulaganja"]
[null,"Fiksna aktiva","Umanjeno za ukupnu amortizaciju (negativna vrijednost)",{"v":-100,"d":"-100 "},{"v":-85,"d":"-85 "}]
[null,"Ostala aktiva","Dobrotvorne svrhe"]
[null,"Ukupna aktiva",null,{"$f":"SUBTOTAL(109,Aktiva[Prethodna godina])","v":500},{"$f":"SUBTOTAL(109,Aktiva[Trenutna godina])","v":515}]

{"sheet":"Pasiva","index":2,"n_rows":12,"n_cols":5,"rows_kept":12}
[null,"Pasiva"]
[{"$nulls":3},{"$f":"POSLOVNA_GODINA","v":"PG-2016"},{"$f":"POSLOVNA_GODINA_2","v":"PG-2017"}]
[null,"Vrsta odgovornosti","Opis","Prethodna godina","Trenutna godina"]
[null,"Trenutna pasiva","Dugovanja",null,350]
[null,"Trenutna pasiva","Obračunate plaće"]
[null,"Trenutna pasiva","Obračunata kompenzacija",500]
[null,"Trenutna pasiva","Porez na dohodak koji je potrebno platiti"]
[null,"Trenutna pasiva","Nezarađeni prihod"]
[null,"Dugoročna pasiva","Hipoteka koju je potrebno platiti"]
[null,"Vlasnički kapital","Investicijski kapital",null,350]
[null,"Vlasnički kapital","Ukupna zadržana dobit"]
[null,"Ukupna pasiva i dioničarski kapital",null,{"$f":"SUBTOTAL(109,Pasiva[Prethodna godina])","v":500},{"$f":"SUBTOTAL(109,Pasiva[Trenutna godina])","v":700}]

{"sheet":"Kategorije","index":3,"n_rows":9,"n_cols":2,"rows_kept":9}
[null,"Kategorije"]
[]
[null,"Kategorije"]
[null,"Trenutna aktiva"]
[null,"Fiksna aktiva"]
[null,"Ostala aktiva"]
[null,"Trenutna pasiva"]
[null,"Dugoročna pasiva"]
[null,"Vlasnički kapital"]